fUSD/lending_fUSD_20241110
["ID","MTS","AMOUNT","RATE_DAILY","PERIOD"]
[341787706,1731229859574,-8236.00458786,0.000144,2]
[341787707,1731229859583,-284.23823335,0.000144,2]
[341787708,1731229859593,-185.93854238,0.000144,2]
[341787709,1731229859602,-5338.73460486,0.000144,2]
[341787710,1731229859611,-151.0748,0.00014443,2]
[341787711,1731229859621,-150.0,0.00014451,2]
[341787712,1731229859630,-341.84115564,0.00014473,2]
[341787713,1731229859641,-500.88978415,0.00014473,2]
[341787714,1731229859650,-161.58642334,0.00014473,2]
[341787715,1731229859661,-554.52318383,0.00014473,2]
[341787716,1731229859671,-161.8134079,0.00014473,2]
[341787717,1731229859681,-162.80051472,0.00014473,2]
[341787718,1731229859690,-608.23015029,0.00014473,2]
[341787719,1731229859699,-500.0,0.00014473,2]
[341787720,1731229859709,-500.0,0.00014473,2]
[341787721,1731229859717,-503.47775314,0.00014473,2]
[341787722,1731229859726,-231.5,0.00014479,2]
[341787723,1731229859735,-791.9747892,0.00014488,2]
[341787724,1731229859745,-660.0178553,0.00014488,2]
[341787725,1731229859754,-40000.0,0.00014489,2]
[341787726,1731229859763,-449.2220719,0.00014489,2]
[341787727,1731229859773,-404.1315694,0.00014489,2]
[341787728,1731229859782,-217.4308066,0.00014489,2]
[341787729,1731229859791,-1257.0084718,0.00014489,2]
[341787730,1731229859800,-677.91226591,0.00014489,2]
[341787731,1731229859809,-231.5,0.0001449,2]
[341787732,1731229859818,-432.57950406,0.0001449,2]
[341787733,1731229859827,-432.57950406,0.0001449,2]
[341787734,1731229859837,-432.57950406,0.0001449,2]
[341787735,1731229859846,-588.0,0.00014493,2]
[341787736,1731229859855,-4129.0,0.00014493,2]
[341787737,1731229859864,-470.89132381,0.00014499,2]
[341787738,1731229859873,-1002.81942467,0.00014499,2]
[341787739,1731229859882,-686.49,0.00014499,2]
[341787740,1731229859891,-1109688.46653608,0.000145,2]
[341787741,1731229859900,-11970.08661949,0.000145,2]
[341787742,1731229859909,-8969213.50774601,0.000145,2]
[341787743,1731229859921,-1995.38960891,0.000145,2]
[341787744,1731229859936,-570.13742456,0.000145,2]
[341787745,1731229860969,-2457.16320132,0.00014187,2]
[341787746,1731229860982,-42.83679868,0.00014187,2]
[341787747,1731229860993,-593.40320135,0.00014259,2]
[341787748,1731229861006,-615.06596334,0.00014259,2]
[341787749,1731229861401,-429.88319024,0.00014259,2]
[341787750,1731229863831,-787.14805599,0.00014259,2]
[341787751,1731229863844,-720.03361458,0.00014259,2]
[341787752,1731229863853,-181.40962567,0.000144,2]
[341787753,1731229863863,-370.87675973,0.000145,2]
[341787754,1731229863913,-1767.8320899,0.000145,2]
[341787755,1731229863926,-1985.72258559,0.000145,2]
[341787756,1731229863938,-309.19773251,0.000145,2]
[341787757,1731229863950,-2947.38278257,0.000145,2]
[341787758,1731229864174,-1465.11876998,0.000145,2]
[341787759,1731229864186,-3001.08642527,0.000145,2]
[341787760,1731229865146,-762.58,0.00014055,2]
[341787761,1731229865156,-150.0,0.00014192,2]
[341787762,1731229865167,-500.0,0.00014277,2]
[341787763,1731229865176,-3145.5340255,0.00014287,2]
[341787764,1731229865185,-11278.3957745,0.000145,2]
[341787766,1731230010671,2039.75411758,0.00027,60]
[341787767,1731230254361,365.64,0.00011099,2]
[341787768,1731230274577,254.59421433,0.00027,60]
[341787771,1731230334510,166.51,0.00027,60]
[341787779,1731230650324,1053.0,0.00012185,2]
[341787780,1731230671894,1053.0,0.00012003,2]
[341787781,1731230693522,1053.0,0.00012003,2]
[341787782,1731230714116,1053.0,0.00012003,2]
[341787783,1731230735797,402.66993869,0.00012003,2]
[341787787,1731230810141,-193.5026249,0.00012697,2]
[341787789,1731230847105,-803.23758014,0.00012697,2]
[341787790,1731230854100,-1203.98762876,0.00012697,2]
[341787793,1731230946107,-21699.2721662,0.00012697,2]
[341787794,1731230946128,-154.57,0.00012727,2]
[341787795,1731230946152,-284.68,0.00012744,2]
[341787796,1731230946173,-250.0,0.00012746,2]
[341787797,1731230946196,-436.52,0.00012779,2]
[341787798,1731230946217,-250.0,0.00012779,2]
[341787799,1731230946238,-1053.0,0.00012826,2]
[341787800,1731230946260,-160.2,0.00012927,2]
[341787801,1731230946281,-1699.94,0.0001297,2]
[341787802,1731230946302,-1000.0,0.00012974,2]
[341787803,1731230946325,-365.64,0.00013363,2]
[341787804,1731230946347,-155.38,0.0001337,2]
[341787805,1731230946368,-284.68,0.00013381,2]
[341787806,1731230946391,-155.38,0.00013382,2]
[341787807,1731230946414,-155.38,0.00013395,2]
[341787808,1731230946434,-1686.16,0.00013398,2]
[341787809,1731230946810,-155.38,0.00013407,2]
[341787810,1731230946831,-5335.34,0.00013419,2]
[341787811,1731230946852,-155.38,0.00013419,2]
[341787812,1731230946874,-155.38,0.00013431,2]
[341787813,1731230946898,-155.38,0.00013443,2]
[341787814,1731230946920,-47.7480513,0.00013455,2]
[341787825,1731230957090,-107.6319487,0.00013455,2]
[341787826,1731230957110,-155.38,0.00013468,2]
[341787827,1731230957131,-155.38,0.0001348,2]
[341787828,1731230957158,-155.38,0.00013492,2]
[341787829,1731230971056,73.84405919,0.00011255,2]
[341787830,1731230971078,255.22594081,0.00011255,2]
[341787840,1731231032016,-1053.0,0.00013502,2]
[341787841,1731231032026,-155.38,0.00013504,2]
[341787842,1731231032036,-329.07,0.00013519,2]
[341787843,1731231032046,-432.99,0.00013699,2]
[341787844,1731231032056,-432.99,0.00013699,2]
[341787845,1731231032065,-432.99,0.00013699,2]
[341787846,1731231032075,-250.0,0.000137,2]
[341787847,1731231032084,-150.0,0.00013778,2]
[341787848,1731231032093,-872.83,0.00013818,2]
[341787849,1731231032103,-762.58,0.00013836,2]
[341787850,1731231032112,-150.0,0.00013878,2]
[341787851,1731231032121,-150.0,0.00013973,2]
[341787852,1731231032131,-150.0,0.00013973,2]
[341787853,1731231032140,-150.0,0.00013973,2]
[341787854,1731231032149,-150.0,0.00013973,2]
[341787855,1731231032158,-150.0,0.00013973,2]
[341787856,1731231032167,-362.16,0.00013973,2]
[341787857,1731231032176,-432.99,0.00013973,2]
[341787858,1731231032186,-642.99,0.00013973,2]
[341787859,1731231032195,-284.68,0.00014019,2]
[341787860,1731231032206,-287.45,0.00014058,2]
[341787861,1731231032216,-426.22825879,0.00014088,2]
[341787862,1731231032225,-150.0,0.00014099,2]
[341787863,1731231032234,-2500.0,0.000141,2]
[341787864,1731231032243,-362.16,0.000141,2]
[341787865,1731231032252,-362.16,0.000141,2]
[341787866,1731231032261,-333.54,0.000141,2]
[341787867,1731231032271,-362.16,0.000141,2]
[341787868,1731231032280,-362.16,0.000141,2]
[341787869,1731231032289,-724.32,0.000141,2]
[341787870,1731231032299,-1720.46865384,0.000141,2]
[341787871,1731231032308,-1720.46865382,0.00014133,2]
[341787872,1731231032317,-1720.46865382,0.00014167,2]
[341787873,1731231032326,-1053.0,0.00014177,2]
[341787874,1731231032335,-500.0,0.00014198,2]
[341787875,1731231032344,-174.01002752,0.00014199,2]
[341787876,1731231032353,-49735.24129632,0.000142,2]
[341787981,1731231033533,-3198.28471647,0.000142,2]
[341787987,1731231033580,-41100.000008,0.000142,2]
[341787989,1731231033592,-9441.73785334,0.000142,2]
[341787994,1731231033625,-15173.11114429,0.000142,2]
[341787996,1731231033637,-405.35,0.000142,2]
[341788452,1731231038138,-867.57638522,0.000142,2]
[341788454,1731231038153,-4883.88118523,0.000142,2]
[341788457,1731231038168,-345.0,0.000142,2]
[341788460,1731231038253,-488.66430191,0.000142,2]
[341788462,1731231038265,-9364.42115503,0.000142,2]
[341788464,1731231038276,-6239.54805551,0.000142,2]
[341788466,1731231038288,-875.69451227,0.000142,2]
[341788469,1731231038307,-4026.7252268,0.000142,2]
[341788490,1731231038496,-795.27014367,0.000142,2]
[341788492,1731231038507,-12639.66691594,0.000142,2]
[341788494,1731231038518,-85638.5025,0.000142,2]
[341788496,1731231038527,-457.77,0.000142,2]
[341788498,1731231038537,-1720.46865382,0.000142,2]
[341788500,1731231038546,-165.860991,0.00014206,2]
[341788502,1731231038556,-374.090406,0.00014206,2]
[341788504,1731231038566,-500.0,0.00014206,2]
[341788506,1731231038575,-500.0,0.00014215,2]
[341788508,1731231038585,-500.0,0.00014224,2]
[341788510,1731231038594,-500.0,0.00014233,2]
[341788512,1731231038604,-1720.46865382,0.00014233,2]
[341788514,1731231038614,-500.0,0.00014242,2]
[341788516,1731231038623,-378.16,0.00014247,2]
[341788518,1731231038633,-500.0,0.0001425,2]
[341788520,1731231038642,-500.0,0.00014259,2]
[341788522,1731231038652,-1720.46865382,0.00014267,2]
[341788524,1731231038661,-500.0,0.00014268,2]
[341788526,1731231038670,-77805.601,0.000143,2]
[341788528,1731231038680,-1720.46865382,0.000143,2]
[341788530,1731231038689,-239.43747955,0.000143,2]
[341788532,1731231038698,-1720.46865382,0.00014333,2]
[341788534,1731231038709,-239.43747954,0.0001435,2]
[341788536,1731231038719,-1720.46865382,0.00014367,2]
[341788538,1731231038729,-432.57950406,0.0001437,2]
[341788540,1731231038738,-436.52,0.00014376,2]
[341788542,1731231038748,-500.0,0.00014379,2]
[341788544,1731231038757,-550.0,0.00014379,2]
[341788546,1731231038765,-500.0,0.00014379,2]
[341788548,1731231038775,-500.0,0.00014379,2]
[341788550,1731231038784,-500.0,0.00014379,2]
[341788552,1731231038794,-500.0,0.00014379,2]
[341788554,1731231038803,-500.0,0.00014379,2]
[341788556,1731231038812,-500.0,0.00014379,2]
[341788559,1731231038821,-449.84160779,0.00014379,2]
[341788562,1731231038831,-500.0,0.00014379,2]
[341788565,1731231038841,-500.0,0.00014379,2]
[341788567,1731231038850,-500.0,0.00014379,2]
[341788569,1731231038859,-500.0,0.00014379,2]
[341788571,1731231038868,-500.0,0.00014379,2]
[341788573,1731231038877,-250.0,0.00014379,2]
[341788575,1731231038887,-195588.6785385,0.0001438,2]
[341788580,1731231038929,-88390.57856997,0.0001438,2]
[341788582,1731231038939,-374.090406,0.00014383,2]
[341788584,1731231038948,-1000.0,0.00014389,2]
[341788586,1731231038959,-40000.0,0.00014399,2]
[341788588,1731231038968,-200.0,0.000144,2]
[341788590,1731231038977,-5846.80872096,0.000144,2]
[341788592,1731231038988,-26948.81469593,0.000144,2]
[341788594,1731231038997,-5800.0,0.000144,2]
[341788596,1731231039006,-181.40962567,0.000144,2]
[341788598,1731231039015,-1720.46865382,0.000144,2]
[341788600,1731231039024,-1000.0,0.000144,2]
[341788602,1731231039034,-8236.00458786,0.000144,2]
[341788604,1731231039043,-239.43747954,0.000144,2]
[341788606,1731231039052,-901.71835119,0.000144,2]
[341788608,1731231039061,-5338.73460486,0.000144,2]
[341788610,1731231039070,-40000.0,0.00014426,2]
[341788612,1731231039080,-638.78593645,0.0001445,2]
[341788614,1731231039090,-10428.0929238,0.00014453,2]
[341788616,1731231039099,-161.58642334,0.00014473,2]
[341788618,1731231039108,-161.8134079,0.00014473,2]
[341788620,1731231039118,-162.80051472,0.00014473,2]
[341788622,1731231039129,-500.88978415,0.00014473,2]
[341788624,1731231039138,-554.52318383,0.00014473,2]
[341788626,1731231039147,-608.23015029,0.00014473,2]
[341788628,1731231039157,-341.84115564,0.00014473,2]
[341788630,1731231039167,-500.0,0.00014473,2]
[341788632,1731231039177,-503.47775314,0.00014473,2]
[341788634,1731231039187,-500.0,0.00014473,2]
[341788636,1731231039197,-2042.9272293,0.00014489,2]
[341788638,1731231039208,-526.5702648,0.00014489,2]
[341788640,1731231039217,-739.2157489,0.00014489,2]
[341788642,1731231039226,-323.5045481,0.00014489,2]
[341788644,1731231039235,-432.57950406,0.0001449,2]
[341788646,1731231039245,-432.57950406,0.0001449,2]
[341788648,1731231039254,-588.0,0.00014493,2]
[341788650,1731231039263,-1002.81942467,0.00014499,2]
[341788652,1731231039273,-470.89132381,0.00014499,2]
[341788654,1731231039283,-1000.0,0.00014499,2]
[341788656,1731231039292,-500.0,0.00014499,2]
[341788658,1731231039301,-60891.17013062,0.00014499,2]
[341788660,1731231039311,-325244.47211961,0.000145,2]
[341788667,1731231039370,-784443.99441647,0.000145,2]
[341788669,1731231039379,-11970.08661949,0.000145,2]
[341788671,1731231039389,-9548507.89705974,0.000145,2]
[341788674,1731231039400,-5085.28680752,0.000145,2]
[341788676,1731231039411,-3002.47649284,0.000145,2]
[341788678,1731231039422,-1997.95624769,0.000145,2]
[341788680,1731231039433,-1360.26879342,0.000145,2]
[341788682,1731231039444,-2512.71029907,0.000145,2]
[341788768,1731231040252,-2024.83014199,0.000145,2]
[341788769,1731231040263,-3674.85956402,0.000145,2]
[341788770,1731231040274,-2232.54999996,0.000145,2]
[341788771,1731231040285,-13400.00999996,0.000145,2]
[341788772,1731231040303,-652.60628997,0.000145,2]
[341788773,1731231040627,-409.25187465,0.000145,2]
[341788774,1731231040648,-474.098,0.000145,2]
[341788775,1731231040659,-477.685,0.000145,2]
[341789034,1731231043228,-21.5002916,0.0001445,2]
[341789036,1731231043240,-164.43825078,0.0001445,2]
[341789038,1731231043249,-570.1135954,0.000145,2]
[341789040,1731231043260,-5910.26007187,0.000145,2]
[341789042,1731231043271,-2776.32742737,0.000145,2]
[341789045,1731231043282,-1594.9,0.000145,2]
[341789068,1731231043492,-2711.58181022,0.000145,2]
[341789294,1731231046028,-7934.27728613,0.000145,2]
[341789298,1731231046052,-44221.33482542,0.000145,2]
[341789300,1731231046065,-3957.04124347,0.000145,2]
[341789302,1731231046077,-1325.29994722,0.000145,2]
[341789304,1731231046090,-295.72429341,0.000145,2]
[341789307,1731231046102,-530.82149041,0.000145,2]
[341789314,1731231046171,-3964.8,0.000145,2]
[341789322,1731231046240,-122.40199601,0.000145,2]
[341789324,1731231046252,-3189.0,0.000145,2]
[341789332,1731231046319,-255.18844661,0.000145,2]
[341789334,1731231046331,-7916.1,0.000145,2]
[341789511,1731231787652,339.77,0.00011665,2]
[341789512,1731231838674,2000.32,0.00027,60]
[341789514,1731231959577,-189.78,0.00013517,2]
[341789515,1731231959598,-250.0,0.00013559,2]
[341789516,1731231959618,-234.02665004,0.00013589,2]
[341789517,1731231959646,-477.11334996,0.00013589,2]
[341789518,1731231959665,-911.91928518,0.00013613,2]
[341789519,1731232026617,-250.0,0.00013453,2]
[341789520,1731232026637,-402.33231244,0.00013454,2]
[341789521,1731232027111,-220.00768756,0.00013454,2]
[341789522,1731232027132,-1590.48071482,0.00013613,2]
[341789523,1731232027155,-211.57,0.00013645,2]
[341789524,1731232027177,-829.58475791,0.00013727,2]
[341789525,1731232027204,-851.90080598,0.00013727,2]
[341789526,1731232040178,-566.88399111,0.00013727,2]
[341789543,1731232232208,-1000.0,0.00013581,2]
[341789544,1731232232221,-168.21,0.00013595,2]
[341789545,1731232232232,-300.0,0.00013726,2]
[341789546,1731232232242,-538.08,0.00013727,2]
[341789547,1731232232253,-339.77,0.00013929,2]
[341789548,1731232232266,-426.22825879,0.00013984,2]
[341789549,1731232232277,-150.0,0.00014099,2]
[341789550,1731232232288,-4683.90341121,0.000141,2]
[341789551,1731232232300,-1480.95501327,0.000141,2]
[341789552,1731232232313,-420.816,0.000141,2]
[341789553,1731232232328,-3527.57467552,0.000141,2]
[341789554,1731232232340,-7019.36794295,0.000141,2]
[341789555,1731232232354,-632.89790067,0.000141,2]
[341789556,1731232232400,-1019.74276316,0.000141,2]
[341789557,1731232232413,-1450.12909322,0.000141,2]
[341789558,1731232232424,-789.13843107,0.000141,2]
[341789612,1731232234173,-2095.13003066,0.000141,2]
[341789613,1731232234208,-638.1,0.000141,2]
[341789617,1731232238274,-4835.44113827,0.000141,2]
[341789618,1731232238284,-727.95,0.000141,2]
[341789619,1731232238293,-3855.94,0.00014199,2]
[341789620,1731232238303,-500.0,0.00014199,2]
[341789621,1731232238312,-712.75,0.00014199,2]
[341789622,1731232238321,-443.05585863,0.00014199,2]
[341789623,1731232238353,-1136.65414137,0.00014199,2]
[341789624,1731232238362,-500.0,0.00014199,2]
[341789625,1731232238372,-1511.11,0.00014199,2]
[341789626,1731232238382,-500.0,0.00014199,2]
[341789627,1731232238391,-947.57,0.00014199,2]
[341789628,1731232238401,-822.93,0.00014199,2]
[341789629,1731232238410,-557.43,0.00014199,2]
[341789630,1731232238420,-500.0,0.00014199,2]
[341789631,1731232238431,-1544.69,0.00014199,2]
[341789632,1731232238440,-500.0,0.00014199,2]
[341789633,1731232238449,-1498.88,0.00014199,2]
[341789645,1731232238770,-500.0,0.00014199,2]
[341789647,1731232238788,-500.0,0.00014199,2]
[341789648,1731232238798,-500.0,0.00014199,2]
[341789650,1731232238808,-610.81,0.00014199,2]
[341789652,1731232238818,-500.0,0.00014199,2]
[341789654,1731232238827,-500.0,0.00014199,2]
[341789657,1731232238837,-500.0,0.00014199,2]
[341789659,1731232238846,-1046.37,0.00014199,2]
[341789660,1731232238855,-500.0,0.00014199,2]
[341789662,1731232238864,-3439.28,0.00014199,2]
[341789664,1731232238873,-858.14,0.00014199,2]
[341789665,1731232238883,-772.06,0.00014199,2]
[341789667,1731232238892,-500.0,0.00014199,2]
[341789669,1731232238901,-500.0,0.00014199,2]
[341789670,1731232238912,-500.0,0.00014199,2]
[341789672,1731232238922,-500.0,0.00014199,2]
[341789674,1731232238934,-500.0,0.00014199,2]
[341789676,1731232238946,-726.65,0.00014199,2]
[341789677,1731232238955,-1049.35,0.00014199,2]
[341789679,1731232238965,-500.0,0.00014199,2]
[341789681,1731232238974,-1734.22,0.00014199,2]
[341789682,1731232238983,-1697.62,0.00014199,2]
[341789684,1731232238995,-551.98,0.00014199,2]
[341789686,1731232239004,-500.0,0.00014199,2]
[341789687,1731232239013,-796.27,0.00014199,2]
[341789689,1731232239022,-500.0,0.00014199,2]
[341789691,1731232239031,-362.16,0.000142,2]
[341789693,1731232239040,-150.0,0.000142,2]
[341789694,1731232239050,-3855.94,0.00014379,2]
[341789696,1731232239059,-1511.11,0.00014379,2]
[341789698,1731232239068,-500.0,0.00014379,2]
[341789699,1731232239077,-947.57,0.00014379,2]
[341789701,1731232239087,-822.93,0.00014379,2]
[341789703,1731232239096,-557.43,0.00014379,2]
[341789704,1731232239105,-1544.69,0.00014379,2]
[341789706,1731232239115,-500.0,0.00014379,2]
[341789708,1731232239124,-500.0,0.00014379,2]
[341789710,1731232239133,-610.81,0.00014379,2]
[341789711,1731232239143,-500.0,0.00014379,2]
[341789713,1731232239152,-500.0,0.00014379,2]
[341789715,1731232239161,-3439.28,0.00014379,2]
[341789716,1731232239170,-858.14,0.00014379,2]
[341789718,1731232239181,-772.06,0.00014379,2]
[341789720,1731232239191,-500.0,0.00014379,2]
[341789722,1731232239200,-500.0,0.00014379,2]
[341789723,1731232239210,-500.0,0.00014379,2]
[341789725,1731232239219,-1049.35,0.00014379,2]
[341789727,1731232239229,-500.0,0.00014379,2]
[341789728,1731232239238,-1697.62,0.00014379,2]
[341789730,1731232239248,-500.0,0.00014379,2]
[341789732,1731232239257,-500.0,0.00014379,2]
[341789734,1731232239267,-1099.714,0.0001438,2]
[341789735,1731232239276,-3855.94,0.00014398,2]
[341789737,1731232239285,-1511.11,0.00014398,2]
[341789739,1731232239295,-500.0,0.00014398,2]
[341789740,1731232239304,-947.57,0.00014398,2]
[341789742,1731232239314,-822.93,0.00014398,2]
[341789744,1731232239323,-557.43,0.00014398,2]
[341789746,1731232239333,-1544.69,0.00014398,2]
[341789747,1731232239342,-154.92,0.00014398,2]
[341789748,1731232239351,-500.0,0.00014398,2]
[341789749,1731232239360,-610.81,0.00014398,2]
[341789750,1731232239370,-500.0,0.00014398,2]
[341789751,1731232239379,-500.0,0.00014398,2]
[341789752,1731232239389,-3439.28,0.00014398,2]
[341789753,1731232239398,-858.14,0.00014398,2]
[341789754,1731232239407,-772.06,0.00014398,2]
[341789755,1731232239416,-500.0,0.00014398,2]
[341789756,1731232239426,-500.0,0.00014398,2]
[341789757,1731232239438,-500.0,0.00014398,2]
[341789759,1731232239447,-1049.35,0.00014398,2]
[341789760,1731232239456,-500.0,0.00014398,2]
[341789762,1731232239465,-1697.62,0.00014398,2]
[341789764,1731232239475,-500.0,0.00014398,2]
[341789766,1731232239484,-500.0,0.00014398,2]
[341789768,1731232239493,-1579.71,0.00014399,2]
[341789770,1731232239503,-1498.88,0.00014399,2]
[341789771,1731232239511,-500.0,0.00014399,2]
[341789774,1731232239521,-726.65,0.00014399,2]
[341789776,1731232239531,-796.27,0.00014399,2]
[341789778,1731232239540,-169.01803015,0.000144,2]
[341789780,1731232239550,-527.1994,0.000144,2]
[341789782,1731232239559,-400.9621,0.000144,2]
[341789784,1731232239568,-181.40962567,0.000144,2]
[341789786,1731232239578,-284.23823335,0.000144,2]
[341789788,1731232239588,-500.0,0.00014473,2]
[341789790,1731232239598,-500.0,0.00014473,2]
[341789792,1731232239608,-576.7772427,0.00014488,2]
[341789794,1731232239618,-1236.0790075,0.00014488,2]
[341789796,1731232239627,-2938.2484914,0.00014488,2]
[341789798,1731232239637,-508.7551104,0.00014488,2]
[341789800,1731232239646,-500.0,0.00014498,2]
[341789802,1731232239655,-712.75,0.00014498,2]
[341789804,1731232239665,-500.0,0.00014498,2]
[341789806,1731232239675,-500.0,0.00014498,2]
[341789808,1731232239686,-500.0,0.00014498,2]
[341789810,1731232239695,-500.0,0.00014498,2]
[341789812,1731232239705,-500.0,0.00014498,2]
[341789814,1731232239714,-500.0,0.00014498,2]
[341789816,1731232239724,-1046.37,0.00014498,2]
[341789818,1731232239733,-500.0,0.00014498,2]
[341789820,1731232239742,-1734.22,0.00014498,2]
[341789822,1731232239752,-551.98,0.00014498,2]
[341789824,1731232239761,-470.89132382,0.00014499,2]
[341789826,1731232239771,-215.05480232,0.00014499,2]
[341789828,1731232239780,-500.0,0.00014499,2]
[341789830,1731232239793,-500.0,0.00014499,2]
[341789832,1731232239802,-500.0,0.00014499,2]
[341789834,1731232239812,-500.0,0.00014499,2]
[341789836,1731232239822,-438.61078932,0.00014499,2]
[341789838,1731232239831,-500.0,0.00014499,2]
[341789840,1731232239840,-500.0,0.00014499,2]
[341789842,1731232239849,-500.0,0.00014499,2]
[341789844,1731232239859,-500.0,0.00014499,2]
[341789846,1731232239868,-150.53836162,0.00014499,2]
[341789848,1731232239877,-500.0,0.00014499,2]
[341789850,1731232239886,-157.02755253,0.00014499,2]
[341789852,1731232239895,-686.49,0.00014499,2]
[341789854,1731232239905,-500.0,0.00014499,2]
[341789856,1731232239917,-498.14125505,0.00014499,2]
[341789858,1731232239927,-500.0,0.00014499,2]
[341789860,1731232239938,-3855.94,0.00014499,2]
[341789862,1731232239948,-500.0,0.00014499,2]
[341789864,1731232239958,-3855.94,0.00014499,2]
[341789866,1731232239967,-500.0,0.00014499,2]
[341789868,1731232239976,-500.0,0.00014499,2]
[341789870,1731232239986,-3855.94,0.00014499,2]
[341789872,1731232239996,-500.0,0.00014499,2]
[341789874,1731232240006,-500.0,0.00014499,2]
[341789876,1731232240016,-500.0,0.00014499,2]
[341789878,1731232240025,-537.80749063,0.00014499,2]
[341789881,1731232240034,-3855.94,0.00014499,2]
[341789884,1731232240044,-500.0,0.00014499,2]
[341789886,1731232240053,-500.0,0.00014499,2]
[341789888,1731232240062,-3855.94,0.00014499,2]
[341789890,1731232240072,-500.0,0.00014499,2]
[341789893,1731232240082,-1222.27,0.00014499,2]
[341789895,1731232240093,-500.0,0.00014499,2]
[341789896,1731232240102,-3855.94,0.00014499,2]
[341789898,1731232240111,-500.0,0.00014499,2]
[341789900,1731232240121,-1222.27,0.00014499,2]
[341789902,1731232240131,-712.75,0.00014499,2]
[341789904,1731232240140,-500.0,0.00014499,2]
[341789906,1731232240150,-3855.94,0.00014499,2]
[341789909,1731232240159,-500.0,0.00014499,2]
[341789911,1731232240169,-500.0,0.00014499,2]
[341789913,1731232240178,-712.75,0.00014499,2]
[341789915,1731232240189,-500.0,0.00014499,2]
[341789917,1731232240199,-500.0,0.00014499,2]
[341789918,1731232240208,-1222.27,0.00014499,2]
[341789920,1731232240218,-500.0,0.00014499,2]
[341789922,1731232240228,-3855.94,0.00014499,2]
[341789924,1731232240237,-712.75,0.00014499,2]
[341789926,1731232240246,-500.0,0.00014499,2]
[341789928,1731232240256,-500.0,0.00014499,2]
[341789930,1731232240265,-1222.27,0.00014499,2]
[341789932,1731232240274,-500.0,0.00014499,2]
[341789934,1731232240283,-500.0,0.00014499,2]
[341789936,1731232240292,-1579.71,0.00014499,2]
[341789938,1731232240302,-3855.94,0.00014499,2]
[341789940,1731232240311,-712.75,0.00014499,2]
[341789942,1731232240323,-500.0,0.00014499,2]
[341789944,1731232240332,-500.0,0.00014499,2]
[341789946,1731232240342,-554.08796071,0.00014499,2]
[341789948,1731232240351,-500.0,0.00014499,2]
[341789950,1731232240360,-1222.27,0.00014499,2]
[341789952,1731232240370,-3855.94,0.00014499,2]
[341789954,1731232240379,-1579.71,0.00014499,2]
[341789956,1731232240388,-712.75,0.00014499,2]
[341789958,1731232240397,-500.0,0.00014499,2]
[341789960,1731232240407,-500.0,0.00014499,2]
[341789962,1731232240417,-500.0,0.00014499,2]
[341789964,1731232240427,-3855.94,0.00014499,2]
[341789966,1731232240439,-1579.71,0.00014499,2]
[341789968,1731232240449,-1222.27,0.00014499,2]
[341789970,1731232240458,-712.75,0.00014499,2]
[341789972,1731232240467,-500.0,0.00014499,2]
[341789974,1731232240476,-273.9645377,0.00014499,2]
[341789976,1731232240486,-500.0,0.00014499,2]
[341789978,1731232240495,-3855.94,0.00014499,2]
[341789980,1731232240504,-1222.27,0.00014499,2]
[341789982,1731232240513,-1579.71,0.00014499,2]
[341789984,1731232240523,-712.75,0.00014499,2]
[341789986,1731232240532,-172.30059322,0.00014499,2]